[Event "Titled Tuesday Blitz November 15 Late 2022"]
[White "Souleidis, Georgios"]
[Black "Bach, Matthias"]
[WhiteFideId "4206827"]
[BlackFideId "4603168"]
[WhiteElo "2401"]
[BlackElo "2165"]
[Result "1-0"]
[Round "02"]
[TimeControl "180+1"]
[Date "2022.11.16"]
[WhiteClock "0:00:08"]
[BlackClock "0:00:09"]

1. e4 {[%clk 0:03:00]}  e5 {[%clk 0:02:59]} 2. Nc3 {[%clk 0:02:59]}  Bc5 {[%clk 0:02:57]} 3. Bc4 {[%clk 0:02:51]}  d6 {[%clk 0:02:57]} 4. d3 {[%clk 0:02:50]}  Ne7 {[%clk 0:02:53]} 5. Na4 {[%clk 0:02:38]}  Nd7 {[%clk 0:02:44]} 6. Nxc5 {[%clk 0:02:36]}  Nxc5 {[%clk 0:02:44]} 7. Be3 {[%clk 0:02:35]}  Ne6 {[%clk 0:02:40]} 8. Ne2 {[%clk 0:02:33]}  O-O {[%clk 0:02:38]} 9. O-O {[%clk 0:02:33]}  c6 {[%clk 0:02:34]} 10. Bb3 {[%clk 0:02:28]}  Kh8 {[%clk 0:02:24]} 11. d4 {[%clk 0:02:28]}  Ng6 {[%clk 0:02:18]} 12. dxe5 {[%clk 0:02:19]}  dxe5 {[%clk 0:02:17]} 13. Qxd8 {[%clk 0:02:19]}  Rxd8 {[%clk 0:02:16]} 14. Rad1 {[%clk 0:02:20]}  Bd7 {[%clk 0:02:12]} 15. Rd2 {[%clk 0:02:10]}  Ngf8 {[%clk 0:02:00]} 16. Rfd1 {[%clk 0:02:07]}  Be8 {[%clk 0:01:57]} 17. Rxd8 {[%clk 0:02:02]}  Rxd8 {[%clk 0:01:56]} 18. Rxd8 {[%clk 0:02:02]}  Nxd8 {[%clk 0:01:57]} 19. Bxa7 {[%clk 0:02:02]}  Nfe6 {[%clk 0:01:52]} 20. f3 {[%clk 0:02:00]}  b5 {[%clk 0:01:49]} 21. Kf2 {[%clk 0:01:56]}  Bd7 {[%clk 0:01:48]} 22. a4 {[%clk 0:01:45]}  bxa4 {[%clk 0:01:47]} 23. Bxa4 {[%clk 0:01:45]}  f6 {[%clk 0:01:44]} 24. Ke3 {[%clk 0:01:42]}  Kg8 {[%clk 0:01:43]} 25. Nc1 {[%clk 0:01:39]}  Nb7 {[%clk 0:01:38]} 26. Nd3 {[%clk 0:01:34]}  Kf8 {[%clk 0:01:37]} 27. Nb4 {[%clk 0:01:29]}  Ned8 {[%clk 0:01:29]} 28. Na6 {[%clk 0:01:22]}  Ke7 {[%clk 0:01:27]} 29. Nc5 {[%clk 0:01:21]}  Be8 {[%clk 0:01:21]} 30. Nxb7 {[%clk 0:01:20]}  Nxb7 {[%clk 0:01:22]} 31. Bb6 {[%clk 0:01:17]}  Kd6 {[%clk 0:01:21]} 32. b4 {[%clk 0:01:09]}  Bd7 {[%clk 0:01:21]} 33. c4 {[%clk 0:01:06]}  Be8 {[%clk 0:01:07]} 34. c5+ {[%clk 0:01:04]}  Ke7 {[%clk 0:01:06]} 35. g3 {[%clk 0:01:01]}  Bd7 {[%clk 0:01:03]} 36. f4 {[%clk 0:01:00]}  Nd8 {[%clk 0:01:02]} 37. Bxd8+ {[%clk 0:00:58]}  Kxd8 {[%clk 0:01:02]} 38. f5 {[%clk 0:00:51]}  Kc7 {[%clk 0:00:59]} 39. g4 {[%clk 0:00:49]}  h6 {[%clk 0:00:59]} 40. Kd3 {[%clk 0:00:48]}  Kb7 {[%clk 0:00:58]} 41. Kc4 {[%clk 0:00:49]}  Ka6 {[%clk 0:00:56]} 42. h3 {[%clk 0:00:44]}  Be8 {[%clk 0:00:55]} 43. Kc3 {[%clk 0:00:44]}  Kb7 {[%clk 0:00:54]} 44. Bb3 {[%clk 0:00:42]}  Ka6 {[%clk 0:00:53]} 45. Bc4+ {[%clk 0:00:42]}  Kb7 {[%clk 0:00:53]} 46. Kb3 {[%clk 0:00:43]}  Kc7 {[%clk 0:00:43]} 47. Ka4 {[%clk 0:00:42]}  Kb7 {[%clk 0:00:41]} 48. Ka5 {[%clk 0:00:43]}  Kc7 {[%clk 0:00:41]} 49. Ka6 {[%clk 0:00:42]}  Bd7 {[%clk 0:00:40]} 50. Ka7 {[%clk 0:00:34]}  Bc8 {[%clk 0:00:38]} 51. b5 {[%clk 0:00:24]}  cxb5 {[%clk 0:00:36]} 52. Bxb5 {[%clk 0:00:25]}  Bb7 {[%clk 0:00:34]} 53. Bd3 {[%clk 0:00:18]}  Kc6 {[%clk 0:00:29]} 54. Kb8 {[%clk 0:00:19]}  Kxc5 {[%clk 0:00:20]} 55. Kxb7 {[%clk 0:00:19]}  Kd4 {[%clk 0:00:20]} 56. Bb1 {[%clk 0:00:17]}  Ke3 {[%clk 0:00:17]} 57. Kc6 {[%clk 0:00:17]}  Kf4 {[%clk 0:00:17]} 58. Kd6 {[%clk 0:00:18]}  Kg3 {[%clk 0:00:18]} 59. Bc2 {[%clk 0:00:08]}  Kxh3 {[%clk 0:00:15]} 60. Bd1 {[%clk 0:00:08]}  Kg3 {[%clk 0:00:15]} 61. Ke6 {[%clk 0:00:08]}  Kf4 {[%clk 0:00:16]} 62. Kf7 {[%clk 0:00:08]}  Kxe4 {[%clk 0:00:14]} 63. Kxg7 {[%clk 0:00:08]}  Kd3 {[%clk 0:00:09]} 64. Kxf6 {[%clk 0:00:09]}  e4 {[%clk 0:00:10]} 65. g5 {[%clk 0:00:07]}  hxg5 {[%clk 0:00:09]} 66. Kxg5 {[%clk 0:00:07]}  Kd2 {[%clk 0:00:09]} 67. Bg4 {[%clk 0:00:07]}  e3 {[%clk 0:00:09]} 68. f6 {[%clk 0:00:08]} 1-0


[Site "https://www.chess.com"]

[Event "Titled Tuesday Blitz November 15 Late 2022"]
[White "Stanisz, Patryk"]
[Black "Tan, Ralph"]
[WhiteFideId "1123106"]
[BlackFideId "30966590"]
[WhiteElo "2069"]
[BlackElo "2059"]
[Result "0-1"]
[Round "02"]
[TimeControl "180+1"]
[Date "2022.11.16"]
[WhiteClock "0:00:03"]
[BlackClock "0:00:09"]

1. d4 {[%clk 0:03:00]}  Nf6 {[%clk 0:02:59]} 2. c4 {[%clk 0:02:58]}  g6 {[%clk 0:02:58]} 3. Nc3 {[%clk 0:02:57]}  Bg7 {[%clk 0:02:58]} 4. e4 {[%clk 0:02:53]}  d6 {[%clk 0:02:58]} 5. Be2 {[%clk 0:02:52]}  O-O {[%clk 0:02:57]} 6. g4 {[%clk 0:02:52]}  c5 {[%clk 0:02:47]} 7. d5 {[%clk 0:02:51]}  b5 {[%clk 0:02:36]} 8. cxb5 {[%clk 0:02:52]}  a6 {[%clk 0:02:31]} 9. g5 {[%clk 0:02:49]}  Nfd7 {[%clk 0:02:24]} 10. Nf3 {[%clk 0:02:47]}  axb5 {[%clk 0:02:20]} 11. Bxb5 {[%clk 0:02:48]}  Ba6 {[%clk 0:02:19]} 12. Qe2 {[%clk 0:02:32]}  Ne5 {[%clk 0:01:52]} 13. Nxe5 {[%clk 0:02:26]}  Bxe5 {[%clk 0:01:53]} 14. O-O {[%clk 0:02:16]}  Bxb5 {[%clk 0:01:45]} 15. Qxb5 {[%clk 0:02:11]}  Nd7 {[%clk 0:01:43]} 16. Kg2 {[%clk 0:02:03]}  Rb8 {[%clk 0:01:30]} 17. Qe2 {[%clk 0:02:03]}  Qa5 {[%clk 0:01:11]} 18. Nd1 {[%clk 0:01:41]}  Qb5 {[%clk 0:00:37]} 19. Qg4 {[%clk 0:01:37]}  f5 {[%clk 0:00:32]} 20. gxf6 {[%clk 0:01:25]}  Nxf6 {[%clk 0:00:32]} 21. Qe6+ {[%clk 0:01:26]}  Rf7 {[%clk 0:00:32]} 22. f4 {[%clk 0:00:41]}  Bd4 {[%clk 0:00:31]} 23. Nc3 {[%clk 0:00:25]}  Bxc3 {[%clk 0:00:29]} 24. bxc3 {[%clk 0:00:25]}  Qe2+ {[%clk 0:00:30]} 25. Rf2 {[%clk 0:00:26]}  Qxe4+ {[%clk 0:00:30]} 26. Qxe4 {[%clk 0:00:26]}  Nxe4 {[%clk 0:00:31]} 27. Rb2 {[%clk 0:00:25]}  Ra8 {[%clk 0:00:23]} 28. a4 {[%clk 0:00:23]}  Nxc3 {[%clk 0:00:22]} 29. a5 {[%clk 0:00:23]}  Nxd5 {[%clk 0:00:21]} 30. a6 {[%clk 0:00:23]}  e6 {[%clk 0:00:21]} 31. Bd2 {[%clk 0:00:18]}  Rfa7 {[%clk 0:00:19]} 32. Rb7 {[%clk 0:00:15]}  Rxa6 {[%clk 0:00:18]} 33. Re1 {[%clk 0:00:12]}  Re8 {[%clk 0:00:17]} 34. f5 {[%clk 0:00:10]}  gxf5 {[%clk 0:00:17]} 35. Bh6 {[%clk 0:00:10]}  Ra2+ {[%clk 0:00:16]} 36. Kh1 {[%clk 0:00:10]}  Nf6 {[%clk 0:00:13]} 37. Rg7+ {[%clk 0:00:09]}  Kh8 {[%clk 0:00:13]} 38. Reg1 {[%clk 0:00:09]}  Ng4 {[%clk 0:00:13]} 39. R7xg4 {[%clk 0:00:03]}  fxg4 {[%clk 0:00:14]} 40. Rxg4 {[%clk 0:00:03]}  Rb8 {[%clk 0:00:12]} 41. Rg1 {[%clk 0:00:02]}  e5 {[%clk 0:00:08]} 42. Bg7+ {[%clk 0:00:01]}  Kg8 {[%clk 0:00:08]} 43. Bxe5+ {[%clk 0:00:02]}  Kf7 {[%clk 0:00:09]} 44. Bxd6 {[%clk 0:00:03]}  Rbb2 {[%clk 0:00:09]} 45. Bc7 {[%clk 0:00:02]}  Rc2 {[%clk 0:00:09]} 46. Rf1+ {[%clk 0:00:03]}  Ke6 {[%clk 0:00:09]} 47. Re1+ {[%clk 0:00:03]}  Kd5 {[%clk 0:00:09]} 48. Bg3 {[%clk 0:00:03]}  h5 {[%clk 0:00:09]} 49. Rd1+ {[%clk 0:00:03]}  Kc4 {[%clk 0:00:09]} 0-1


[Site "https://www.chess.com"]

[Event "Titled Tuesday Blitz November 15 Late 2022"]
[White "Suich, Peter D"]
[Black "Toncheva, Nadya"]
[WhiteFideId "2050366"]
[BlackFideId "2924056"]
[WhiteElo "2373"]
[BlackElo "2101"]
[Result "1-0"]
[Round "02"]
[TimeControl "180+1"]
[Date "2022.11.16"]
[WhiteClock "0:00:17"]
[BlackClock "0:00:03"]

1. d4 {[%clk 0:03:00]}  d5 {[%clk 0:02:59]} 2. c4 {[%clk 0:03:01]}  dxc4 {[%clk 0:03:00]} 3. e4 {[%clk 0:03:00]}  e5 {[%clk 0:02:59]} 4. Nf3 {[%clk 0:03:01]}  Bb4+ {[%clk 0:03:00]} 5. Nbd2 {[%clk 0:03:00]}  c3 {[%clk 0:02:59]} 6. bxc3 {[%clk 0:02:30]}  Bxc3 {[%clk 0:02:58]} 7. Ba3 {[%clk 0:02:31]}  exd4 {[%clk 0:02:36]} 8. Bc4 {[%clk 0:02:30]}  Nc6 {[%clk 0:02:02]} 9. Qb3 {[%clk 0:02:03]}  Nh6 {[%clk 0:01:53]} 10. Rd1 {[%clk 0:01:45]}  Na5 {[%clk 0:01:44]} 11. Qb5+ {[%clk 0:01:39]}  Nc6 {[%clk 0:01:35]} 12. Qh5 {[%clk 0:00:59]}  Qf6 {[%clk 0:01:22]} 13. O-O {[%clk 0:00:50]}  Bg4 {[%clk 0:01:19]} 14. Qb5 {[%clk 0:00:46]}  Bxd2 {[%clk 0:01:09]} 15. e5 {[%clk 0:00:39]}  Qg6 {[%clk 0:00:39]} 16. Nxd4 {[%clk 0:00:32]}  Bxd1 {[%clk 0:00:28]} 17. Rxd1 {[%clk 0:00:31]}  Bf4 {[%clk 0:00:20]} 18. e6 {[%clk 0:00:28]}  Rd8 {[%clk 0:00:16]} 19. Re1 {[%clk 0:00:19]}  Bd6 {[%clk 0:00:05]} 20. exf7+ {[%clk 0:00:19]}  Kf8 {[%clk 0:00:04]} 21. Ne6+ {[%clk 0:00:19]}  Kxf7 {[%clk 0:00:02]} 22. Nxd8+ {[%clk 0:00:18]}  Kf8 {[%clk 0:00:03]} 23. Ne6+ {[%clk 0:00:18]}  Kf7 {[%clk 0:00:03]} 24. Nf4+ {[%clk 0:00:18]}  Kf8 {[%clk 0:00:02]} 25. Nxg6+ {[%clk 0:00:19]}  hxg6 {[%clk 0:00:03]} 26. Qd5 {[%clk 0:00:17]}  Nf5 {[%clk 0:00:03]} 1-0


[Site "https://www.chess.com"]

[Event "Titled Tuesday Blitz November 15 Late 2022"]
[White "Suleymanli, Suleyman"]
[Black "Madaminov, Mukhiddin"]
[WhiteFideId "13416375"]
[BlackFideId "14210703"]
[WhiteElo "2204"]
[BlackElo "2341"]
[Result "1-0"]
[Round "02"]
[TimeControl "180+1"]
[Date "2022.11.16"]
[WhiteClock "0:00:09"]
[BlackClock "0:00:01"]

1. e4 {[%clk 0:03:00]}  e5 {[%clk 0:02:58]} 2. Nf3 {[%clk 0:03:00]}  Nc6 {[%clk 0:02:58]} 3. Bb5 {[%clk 0:03:00]}  b6 {[%clk 0:02:58]} 4. O-O {[%clk 0:02:44]}  Nge7 {[%clk 0:02:53]} 5. d4 {[%clk 0:02:43]}  exd4 {[%clk 0:02:53]} 6. Nxd4 {[%clk 0:02:44]}  Bb7 {[%clk 0:02:53]} 7. Nc3 {[%clk 0:02:43]}  Nxd4 {[%clk 0:02:50]} 8. Qxd4 {[%clk 0:02:44]}  Nc6 {[%clk 0:02:51]} 9. Qe3 {[%clk 0:02:43]}  Be7 {[%clk 0:02:33]} 10. Qg3 {[%clk 0:02:40]}  O-O {[%clk 0:02:30]} 11. e5 {[%clk 0:02:38]}  Nd4 {[%clk 0:02:26]} 12. Bd3 {[%clk 0:02:36]}  Re8 {[%clk 0:02:13]} 13. Be3 {[%clk 0:02:29]}  c5 {[%clk 0:02:03]} 14. f4 {[%clk 0:02:28]}  d6 {[%clk 0:02:00]} 15. Ne4 {[%clk 0:02:21]}  Bxe4 {[%clk 0:01:56]} 16. Bxd4 {[%clk 0:02:18]}  Bxd3 {[%clk 0:01:56]} 17. exd6 {[%clk 0:02:18]}  Bf8 {[%clk 0:01:54]} 18. Bxg7 {[%clk 0:02:04]}  Bxg7 {[%clk 0:01:52]} 19. Qxd3 {[%clk 0:02:03]}  Re6 {[%clk 0:01:37]} 20. Rad1 {[%clk 0:02:01]}  Bd4+ {[%clk 0:01:32]} 21. Kh1 {[%clk 0:02:01]}  Rxd6 {[%clk 0:01:30]} 22. c3 {[%clk 0:02:00]}  Be5 {[%clk 0:01:21]} 23. Qf3 {[%clk 0:01:58]}  Bxf4 {[%clk 0:01:13]} 24. Qxf4 {[%clk 0:01:56]}  Rxd1 {[%clk 0:01:10]} 25. Qg4+ {[%clk 0:01:56]}  Kf8 {[%clk 0:01:07]} 26. Rxd1 {[%clk 0:01:56]}  Qf6 {[%clk 0:01:08]} 27. Qe4 {[%clk 0:01:51]}  Rd8 {[%clk 0:00:57]} 28. Rxd8+ {[%clk 0:01:46]}  Qxd8 {[%clk 0:00:58]} 29. h3 {[%clk 0:01:46]}  Qd1+ {[%clk 0:00:58]} 30. Kh2 {[%clk 0:01:46]}  Qd6+ {[%clk 0:00:58]} 31. Kh1 {[%clk 0:01:44]}  Qh6 {[%clk 0:00:44]} 32. Kh2 {[%clk 0:01:21]}  Qc1 {[%clk 0:00:39]} 33. Qxh7 {[%clk 0:01:17]}  Qxb2 {[%clk 0:00:36]} 34. Qh8+ {[%clk 0:01:17]}  Ke7 {[%clk 0:00:36]} 35. Qe5+ {[%clk 0:01:18]}  Kd7 {[%clk 0:00:37]} 36. Qd5+ {[%clk 0:01:18]}  Kc8 {[%clk 0:00:32]} 37. Qa8+ {[%clk 0:01:17]}  Kc7 {[%clk 0:00:31]} 38. Qxa7+ {[%clk 0:01:17]}  Kc6 {[%clk 0:00:32]} 39. Qa4+ {[%clk 0:01:15]}  b5 {[%clk 0:00:28]} 40. Qb3 {[%clk 0:01:13]}  Qf2 {[%clk 0:00:26]} 41. Kh1 {[%clk 0:00:56]}  Kb6 {[%clk 0:00:20]} 42. Kh2 {[%clk 0:00:48]}  Ka5 {[%clk 0:00:19]} 43. Qa3+ {[%clk 0:00:48]}  Kb6 {[%clk 0:00:20]} 44. Qb3 {[%clk 0:00:45]}  Qf4+ {[%clk 0:00:17]} 45. Kh1 {[%clk 0:00:44]}  Qc1+ {[%clk 0:00:16]} 46. Kh2 {[%clk 0:00:44]}  Ka5 {[%clk 0:00:16]} 47. h4 {[%clk 0:00:34]}  Qf4+ {[%clk 0:00:09]} 48. g3 {[%clk 0:00:29]}  Qf2+ {[%clk 0:00:09]} 49. Kh3 {[%clk 0:00:29]}  f5 {[%clk 0:00:10]} 50. Qd5 {[%clk 0:00:25]}  Kb6 {[%clk 0:00:01]} 51. Qd6+ {[%clk 0:00:17]}  Ka5 {[%clk 0:00:01]} 52. Qc7+ {[%clk 0:00:17]}  Ka6 {[%clk 0:00:02]} 53. Qc6+ {[%clk 0:00:17]}  Ka5 {[%clk 0:00:02]} 54. Qb7 {[%clk 0:00:16]}  c4 {[%clk 0:00:01]} 55. Qc7+ {[%clk 0:00:10]}  Ka6 {[%clk 0:00:01]} 56. Qc6+ {[%clk 0:00:10]}  Ka5 {[%clk 0:00:02]} 57. Qg2 {[%clk 0:00:10]}  Qe3 {[%clk 0:00:01]} 58. Qa8+ {[%clk 0:00:09]}  Kb6 {[%clk 0:00:02]} 59. h5 {[%clk 0:00:09]}  Qxc3 {[%clk 0:00:01]} 60. h6 {[%clk 0:00:09]} 1-0


[Site "https://www.chess.com"]

[Event "Titled Tuesday Blitz November 15 Late 2022"]
[White "Swiercz, Dariusz"]
[Black "Martinovici, Ilia"]
[WhiteFideId "1126881"]
[BlackFideId "13907034"]
[WhiteElo "2627"]
[BlackElo "2306"]
[Result "1-0"]
[Round "02"]
[TimeControl "180+1"]
[Date "2022.11.15"]
[WhiteClock "0:00:17"]
[BlackClock "0:01:32"]

1. e4 {[%clk 0:03:00]}  c5 {[%clk 0:02:59]} 2. Nf3 {[%clk 0:03:01]}  e6 {[%clk 0:02:59]} 3. Nc3 {[%clk 0:03:00]}  Nc6 {[%clk 0:02:58]} 4. Bb5 {[%clk 0:02:59]}  Nge7 {[%clk 0:02:59]} 5. O-O {[%clk 0:02:59]}  a6 {[%clk 0:02:59]} 6. Bxc6 {[%clk 0:02:59]}  Nxc6 {[%clk 0:03:00]} 7. d4 {[%clk 0:03:00]}  cxd4 {[%clk 0:03:00]} 8. Nxd4 {[%clk 0:03:01]}  Qc7 {[%clk 0:03:00]} 9. Re1 {[%clk 0:02:56]}  Bd6 {[%clk 0:02:56]} 10. g3 {[%clk 0:02:44]}  Bc5 {[%clk 0:02:54]} 11. Nb3 {[%clk 0:02:40]}  Ba7 {[%clk 0:02:46]} 12. Bf4 {[%clk 0:02:34]}  Qd8 {[%clk 0:02:43]} 13. Bd6 {[%clk 0:02:29]}  Qf6 {[%clk 0:02:41]} 14. Qd2 {[%clk 0:02:17]}  Nd4 {[%clk 0:02:38]} 15. Nxd4 {[%clk 0:02:13]}  Qxd4 {[%clk 0:02:39]} 16. Rad1 {[%clk 0:01:39]}  Qxd2 {[%clk 0:02:39]} 17. Rxd2 {[%clk 0:01:40]}  f6 {[%clk 0:02:39]} 18. a4 {[%clk 0:01:39]}  b6 {[%clk 0:02:29]} 19. Red1 {[%clk 0:01:14]}  Bb7 {[%clk 0:02:25]} 20. Rd3 {[%clk 0:00:54]}  Bc6 {[%clk 0:02:24]} 21. b4 {[%clk 0:00:53]}  b5 {[%clk 0:02:23]} 22. axb5 {[%clk 0:00:41]}  axb5 {[%clk 0:02:24]} 23. Kg2 {[%clk 0:00:42]}  Kf7 {[%clk 0:02:22]} 24. f3 {[%clk 0:00:41]}  Bb6 {[%clk 0:02:20]} 25. Ne2 {[%clk 0:00:40]}  Ra2 {[%clk 0:02:17]} 26. R1d2 {[%clk 0:00:40]}  Rc8 {[%clk 0:02:16]} 27. Nd4 {[%clk 0:00:34]}  Bxd4 {[%clk 0:02:05]} 28. Rxd4 {[%clk 0:00:35]}  Bb7 {[%clk 0:02:06]} 29. Bc5 {[%clk 0:00:35]}  d5 {[%clk 0:02:06]} 30. exd5 {[%clk 0:00:27]}  Bxd5 {[%clk 0:02:07]} 31. Kf2 {[%clk 0:00:27]}  Rca8 {[%clk 0:01:57]} 32. R4d3 {[%clk 0:00:27]}  Rb2 {[%clk 0:01:55]} 33. Rc3 {[%clk 0:00:22]}  Ra1 {[%clk 0:01:49]} 34. Bd4 {[%clk 0:00:22]}  Rh1 {[%clk 0:01:49]} 35. Rc7+ {[%clk 0:00:22]}  Kg6 {[%clk 0:01:49]} 36. Bxb2 {[%clk 0:00:22]}  Rxh2+ {[%clk 0:01:49]} 37. Ke3 {[%clk 0:00:23]}  Rh3 {[%clk 0:01:48]} 38. Rg2 {[%clk 0:00:22]}  e5 {[%clk 0:01:44]} 39. Rd7 {[%clk 0:00:20]}  Bc4 {[%clk 0:01:44]} 40. Rd6 {[%clk 0:00:19]}  Kf5 {[%clk 0:01:44]} 41. g4+ {[%clk 0:00:18]}  Kg6 {[%clk 0:01:44]} 42. Bxe5 {[%clk 0:00:17]}  Bf1 {[%clk 0:01:32]} 43. Rh2 {[%clk 0:00:17]} 1-0


[Site "https://www.chess.com"]

[Event "Titled Tuesday Blitz November 15 Late 2022"]
[White "Szente Varga, Fruzsina"]
[Black "Winterberg, Lukas"]
[WhiteFideId "712264"]
[BlackFideId "24622702"]
[WhiteElo "1994"]
[BlackElo "2349"]
[Result "1-0"]
[Round "02"]
[TimeControl "180+1"]
[Date "2022.11.16"]
[WhiteClock "0:00:25"]
[BlackClock "0:00:28"]

1. e4 {[%clk 0:03:00]}  e6 {[%clk 0:02:51]} 2. d4 {[%clk 0:03:01]}  d5 {[%clk 0:02:52]} 3. Nd2 {[%clk 0:03:01]}  c5 {[%clk 0:02:52]} 4. exd5 {[%clk 0:03:01]}  Qxd5 {[%clk 0:02:52]} 5. Ngf3 {[%clk 0:03:02]}  cxd4 {[%clk 0:02:53]} 6. Bc4 {[%clk 0:03:02]}  Qd7 {[%clk 0:02:53]} 7. O-O {[%clk 0:02:57]}  Nc6 {[%clk 0:02:54]} 8. Nb3 {[%clk 0:02:56]}  a6 {[%clk 0:02:54]} 9. Nbxd4 {[%clk 0:02:54]}  Nxd4 {[%clk 0:02:55]} 10. Nxd4 {[%clk 0:02:54]}  Qc7 {[%clk 0:02:56]} 11. Bb3 {[%clk 0:02:52]}  Nf6 {[%clk 0:02:53]} 12. c3 {[%clk 0:02:49]}  Bd6 {[%clk 0:02:52]} 13. h3 {[%clk 0:02:48]}  O-O {[%clk 0:02:51]} 14. Bg5 {[%clk 0:02:47]}  Bh2+ {[%clk 0:02:51]} 15. Kh1 {[%clk 0:02:46]}  Bf4 {[%clk 0:02:51]} 16. Bxf6 {[%clk 0:02:40]}  gxf6 {[%clk 0:02:52]} 17. Qh5 {[%clk 0:02:35]}  f5 {[%clk 0:02:48]} 18. Rad1 {[%clk 0:02:17]}  Kh8 {[%clk 0:02:46]} 19. Nf3 {[%clk 0:02:14]}  Rg8 {[%clk 0:02:45]} 20. Rd4 {[%clk 0:02:01]}  b5 {[%clk 0:02:28]} 21. Rfd1 {[%clk 0:01:50]}  Ra7 {[%clk 0:01:58]} 22. Qh4 {[%clk 0:01:39]}  Be5 {[%clk 0:01:12]} 23. Rd8 {[%clk 0:00:55]}  f6 {[%clk 0:00:53]} 24. Nxe5 {[%clk 0:00:28]}  fxe5 {[%clk 0:00:30]} 25. Qf6+ {[%clk 0:00:25]}  Qg7 {[%clk 0:00:30]} 26. Rxg8+ {[%clk 0:00:24]}  Kxg8 {[%clk 0:00:28]} 27. Rd8+ {[%clk 0:00:25]}  Qf8 {[%clk 0:00:28]} 28. Qxf8# {[%clk 0:00:25]} 1-0


[Site "https://www.chess.com"]

[Event "Titled Tuesday Blitz November 15 Late 2022"]
[White "Szyszylo, Rafal"]
[Black "Gasparyan, David"]
[WhiteFideId "1109626"]
[BlackFideId "13311980"]
[WhiteElo "1981"]
[BlackElo "2275"]
[Result "0-1"]
[Round "02"]
[TimeControl "180+1"]
[Date "2022.11.16"]
[WhiteClock "0:00:01"]
[BlackClock "0:00:42"]

1. e4 {[%clk 0:03:00]}  d6 {[%clk 0:02:47]} 2. d4 {[%clk 0:02:56]}  a5 {[%clk 0:02:46]} 3. Nc3 {[%clk 0:02:51]}  Nd7 {[%clk 0:02:46]} 4. Be3 {[%clk 0:02:50]}  g6 {[%clk 0:02:45]} 5. Qd2 {[%clk 0:02:49]}  Bg7 {[%clk 0:02:45]} 6. h4 {[%clk 0:02:37]}  h6 {[%clk 0:02:44]} 7. f4 {[%clk 0:02:14]}  Ngf6 {[%clk 0:02:41]} 8. Nf3 {[%clk 0:02:11]}  Ng4 {[%clk 0:02:40]} 9. Bg1 {[%clk 0:02:11]}  c6 {[%clk 0:02:37]} 10. h5 {[%clk 0:02:01]}  Qc7 {[%clk 0:02:25]} 11. hxg6 {[%clk 0:02:00]}  fxg6 {[%clk 0:02:25]} 12. Nh4 {[%clk 0:01:57]}  Nf8 {[%clk 0:02:23]} 13. Bd3 {[%clk 0:01:35]}  Be6 {[%clk 0:02:15]} 14. O-O-O {[%clk 0:01:12]}  g5 {[%clk 0:02:09]} 15. f5 {[%clk 0:01:05]}  Bf7 {[%clk 0:02:03]} 16. Nf3 {[%clk 0:01:04]}  O-O-O {[%clk 0:02:03]} 17. Be2 {[%clk 0:00:55]}  Nf6 {[%clk 0:01:45]} 18. e5 {[%clk 0:00:45]}  dxe5 {[%clk 0:01:45]} 19. Nxe5 {[%clk 0:00:44]}  Bg8 {[%clk 0:01:36]} 20. Kb1 {[%clk 0:00:32]}  Nd5 {[%clk 0:01:30]} 21. Bh2 {[%clk 0:00:31]}  Qb6 {[%clk 0:01:24]} 22. Na4 {[%clk 0:00:30]}  Qb4 {[%clk 0:01:18]} 23. Qxb4 {[%clk 0:00:29]}  axb4 {[%clk 0:01:18]} 24. Bf3 {[%clk 0:00:23]}  Nd7 {[%clk 0:01:09]} 25. Ng6 {[%clk 0:00:20]}  Bf6 {[%clk 0:00:56]} 26. Nxh8 {[%clk 0:00:18]}  Bxh8 {[%clk 0:00:57]} 27. Nc5 {[%clk 0:00:15]}  b6 {[%clk 0:00:55]} 28. Nxd7 {[%clk 0:00:15]}  Rxd7 {[%clk 0:00:55]} 29. g4 {[%clk 0:00:13]}  Bf6 {[%clk 0:00:54]} 30. Be5 {[%clk 0:00:12]}  Ne3 {[%clk 0:00:52]} 31. Rd3 {[%clk 0:00:10]}  Nc4 {[%clk 0:00:47]} 32. Bxf6 {[%clk 0:00:09]}  exf6 {[%clk 0:00:48]} 33. Rxh6 {[%clk 0:00:08]}  Re7 {[%clk 0:00:49]} 34. Rd1 {[%clk 0:00:06]}  Bd5 {[%clk 0:00:47]} 35. Bxd5 {[%clk 0:00:06]}  cxd5 {[%clk 0:00:48]} 36. Rxf6 {[%clk 0:00:06]}  Re2 {[%clk 0:00:46]} 37. b3 {[%clk 0:00:05]}  Na3+ {[%clk 0:00:46]} 38. Ka1 {[%clk 0:00:04]}  Rxc2 {[%clk 0:00:46]} 39. Rxb6 {[%clk 0:00:02]}  Kc7 {[%clk 0:00:46]} 40. Rxb4 {[%clk 0:00:02]}  Rg2 {[%clk 0:00:46]} 41. Rc1+ {[%clk 0:00:01]}  Kd7 {[%clk 0:00:42]} 0-1


[Site "https://www.chess.com"]

[Event "Titled Tuesday Blitz November 15 Late 2022"]
[White "Tang, Andrew"]
[Black "Annaberdiyev, Babageldi"]
[WhiteFideId "2059630"]
[BlackFideId "14000385"]
[WhiteElo "2581"]
[BlackElo "2332"]
[Result "1-0"]
[Round "02"]
[TimeControl "180+1"]
[Date "2022.11.16"]
[WhiteClock "0:00:31"]
[BlackClock "0:00:36"]

1. d4 {[%clk 0:03:00]}  e6 {[%clk 0:02:59]} 2. Nf3 {[%clk 0:03:00]}  f5 {[%clk 0:02:58]} 3. g3 {[%clk 0:03:00]}  Nf6 {[%clk 0:02:58]} 4. Bg2 {[%clk 0:03:01]}  d5 {[%clk 0:02:59]} 5. O-O {[%clk 0:03:01]}  Bd6 {[%clk 0:02:59]} 6. b3 {[%clk 0:03:02]}  Qe7 {[%clk 0:02:58]} 7. Bb2 {[%clk 0:03:01]}  Nbd7 {[%clk 0:02:58]} 8. Nbd2 {[%clk 0:03:01]}  O-O {[%clk 0:02:58]} 9. Ne5 {[%clk 0:03:00]}  c6 {[%clk 0:02:55]} 10. Ndf3 {[%clk 0:02:59]}  a5 {[%clk 0:02:55]} 11. Nd3 {[%clk 0:02:49]}  a4 {[%clk 0:02:45]} 12. Nfe5 {[%clk 0:02:44]}  a3 {[%clk 0:02:45]} 13. Bc1 {[%clk 0:02:43]}  Ne4 {[%clk 0:02:45]} 14. c4 {[%clk 0:02:31]}  Nxe5 {[%clk 0:02:05]} 15. dxe5 {[%clk 0:02:13]}  Bc7 {[%clk 0:01:47]} 16. Qc2 {[%clk 0:02:03]}  Bb6 {[%clk 0:01:29]} 17. b4 {[%clk 0:01:54]}  Bd4 {[%clk 0:01:26]} 18. Rb1 {[%clk 0:01:50]}  Ng5 {[%clk 0:01:08]} 19. c5 {[%clk 0:01:40]}  Nf7 {[%clk 0:01:07]} 20. Rb3 {[%clk 0:01:23]}  Nxe5 {[%clk 0:01:01]} 21. e3 {[%clk 0:01:12]}  Nxd3 {[%clk 0:00:59]} 22. exd4 {[%clk 0:01:11]}  Nxc1 {[%clk 0:00:59]} 23. Qxc1 {[%clk 0:01:12]}  e5 {[%clk 0:00:59]} 24. Re1 {[%clk 0:01:05]}  e4 {[%clk 0:00:59]} 25. Rxa3 {[%clk 0:01:02]}  Rxa3 {[%clk 0:00:59]} 26. Qxa3 {[%clk 0:01:03]}  Qf6 {[%clk 0:00:59]} 27. Qe3 {[%clk 0:01:00]}  g5 {[%clk 0:00:59]} 28. f4 {[%clk 0:00:59]}  exf3 {[%clk 0:00:55]} 29. Bxf3 {[%clk 0:00:59]}  f4 {[%clk 0:00:53]} 30. gxf4 {[%clk 0:00:50]}  gxf4 {[%clk 0:00:51]} 31. Qe5 {[%clk 0:00:42]}  Qxe5 {[%clk 0:00:51]} 32. Rxe5 {[%clk 0:00:43]}  Kf7 {[%clk 0:00:51]} 33. a4 {[%clk 0:00:42]}  Kf6 {[%clk 0:00:49]} 34. Kf2 {[%clk 0:00:41]}  Bf5 {[%clk 0:00:48]} 35. Be2 {[%clk 0:00:41]}  Ra8 {[%clk 0:00:48]} 36. a5 {[%clk 0:00:41]}  Be4 {[%clk 0:00:43]} 37. Bg4 {[%clk 0:00:41]}  Rg8 {[%clk 0:00:42]} 38. h3 {[%clk 0:00:41]}  h5 {[%clk 0:00:41]} 39. Rxh5 {[%clk 0:00:40]}  Rg7 {[%clk 0:00:41]} 40. Re5 {[%clk 0:00:39]}  Rh7 {[%clk 0:00:36]} 41. Re6+ {[%clk 0:00:35]}  Kg5 {[%clk 0:00:37]} 42. a6 {[%clk 0:00:33]}  bxa6 {[%clk 0:00:36]} 43. Rxc6 {[%clk 0:00:34]}  Rb7 {[%clk 0:00:36]} 44. Rb6 {[%clk 0:00:33]}  Ra7 {[%clk 0:00:37]} 45. c6 {[%clk 0:00:30]}  a5 {[%clk 0:00:36]} 46. Rb7 {[%clk 0:00:31]} 1-0


[Site "https://www.chess.com"]